Cogmind - Beta 17 @@@ ROGUE MODE // 2026.07.12 @ 01:31:08 Player: Smol John Result: Destroyed by P-80 Master with Gamma Rifle Performance ------------- Evolutions (9) 4500 Regions Visited (13) 2600 Robots Destroyed (101) 505 Value Destroyed (4041) 4041 Prototype IDs (27) 540 Alien Tech Used (0) 0 Bonus (849) 849 TOTAL SCORE: 13035 Bonus ------- Follower Combat Kills 580 Aligned with FarCom 300 Friendly Fire -31 Cogmind --------- Core Integrity 0/1600 Matter 126/300 Energy 99/100 System Corruption 13% Temperature Cool (0) Movement Core (50) Location -1/Access Parts ------- > --- POWER (2) -------- (None) > --- PROPULSION (8) --- (None) > --- UTILITY (12) ----- Improved Target Analyzer > --- WEAPON (3) ------- (None) > --- INVENTORY (5) ---- Impulse Thruster Array Improved Datajack Peak State ------------ > --- POWER ------------ Light Nuclear Core > --- PROPULSION ------- Field Propulsion Array Impulse Thruster Array Impulse Thruster Array Impulse Thruster Array > --- UTILITY ---------- Improved Target Analyzer Armor Integrity Analyzer Quantum Capacitor Advanced Shield Generator Force Field Hacking Suite Improved Hacking Suite > --- WEAPON ----------- Advanced Variable Charge Gun Nova Cannon > --- INVENTORY -------- Myomer Leg Impulse Thruster Array Improved Datajack [Rating: 125] Favorites ----------- Power Light Nuclear Core Engine Light Ion Engine Power Core Light Nuclear Core Reactor Light Antimatter Reactor Propulsion Aluminum Leg Treads Improved Treads Leg Aluminum Leg Wheel Wheel Flight Unit VTOL Module Utility Hacking Suite Device Improved Heat Sink Storage Medium Storage Unit Processor Armor Integrity Analyzer Hackware Hacking Suite Protection Improved Propulsion Shielding Weapon Heavy Gauss Cannon Energy Gun Medium Laser Energy Cannon Improved EM Pulse Cannon Ballistic Gun Improved Heavy Machine Gun Ballistic Cannon Heavy Gauss Cannon Launcher Improved Grenade Launcher Slashing Weapon Greatsword Build | -11 -10 -10 -10 -9 -8 -7 -6 -5 -4 -4 -3 -2 -1 ------- Run | Yrd Mat Min Exi Min Mat Fac Fac Fac Fac Ext Res Res Acc Slots Evolved 18 | . . . . . 4 2 2 2 2 . 2 2 2 Power 1 | . . . . . . 1 . . . . . . . Propulsion 6 | . . . . . 2 . 1 . 1 . 1 . 1 Utility 10 | . . . . . 2 1 1 2 1 . 1 1 1 Weapon 1 | . . . . . . . . . . . . 1 . Parts Attached 135 | 6 3 2 4 1 22 16 39 3 7 12 10 4 6 Power 18 | 1 . . . . 4 3 5 . 2 1 1 1 . Engine 7 | 1 . . . . 2 1 3 . . . . . . Core 9 | . . . . . 2 2 2 . 2 . . 1 . Reactor 2 | . . . . . . . . . . 1 1 . . Propulsion 43 | 2 . . 3 . 6 2 13 . 1 9 2 2 3 Treads 1 | . . . . . . . . . . 1 . . . Leg 30 | 2 . . 3 . 6 2 6 . . 8 2 1 . Wheel 4 | . . . . . . . 3 . 1 . . . . Hover . | . . . . . . . . . . . . . . Flight 8 | . . . . . . . 4 . . . . 1 3 Utility 43 | 1 2 1 . . 5 5 15 3 4 . 4 1 2 Device 18 | . 1 . . . 3 . 5 1 2 . 3 1 2 Storage 4 | 1 1 . . . . . . 1 . . 1 . . Processor 12 | . . 1 . . 1 3 6 . 1 . . . . Hackware 3 | . . . . . . . 1 1 1 . . . . Protection 6 | . . . . . 1 2 3 . . . . . . Artifact . | . . . . . . . . . . . . . . Weapon 31 | 2 1 1 1 1 7 6 6 . . 2 3 . 1 Energy Gun 6 | 1 . . . . 2 1 1 . . . 1 . . Energy Cannon 5 | . . . . . 1 2 1 . . . . . 1 Ballistic Gun 9 | 1 1 1 . 1 3 . 2 . . . . . . Ballistic Cannon 8 | . . . 1 . . 1 2 . . 2 2 . . Launcher 2 | . . . . . 1 1 . . . . . . . Special Weapon . | . . . . . . . . . . . . . . Impact Weapon . | . . . . . . . . . . . . . . Slashing Weapon 1 | . . . . . . 1 . . . . . . . Piercing Weapon . | . . . . . . . . . . . . . . Special Melee Weapon . | . . . . . . . . . . . . . . Unidentified Prototypes 4 | . . . . . . 2 1 . . . 1 . . Parts Lost 99 | . . . . . 19 11 23 1 3 10 19 1 12 Power 13 | . . . . . 3 2 3 . 1 1 2 . 1 Propulsion 34 | . . . . . 6 2 8 . 1 5 8 . 4 Utility 31 | . . . . . 3 4 8 1 1 2 5 1 6 Weapon 21 | . . . . . 7 3 4 . . 2 4 . 1 Highest Loss Streak 19 | . . . . . 16 8 7 1 3 8 19 1 9 To Critical Strikes 3 | . . . . . . . . . . . 3 . . Average Backups 6 | 2 6 10 10 8 8 7 3 4 5 6 7 2 2 Power 1 | . 1 1 1 1 2 1 . . 1 1 1 . . Propulsion 1 | 1 3 4 4 4 2 1 . 1 . 1 1 . . Utility . | . . 2 2 1 . . . 1 . . . . . Weapon 2 | . 1 2 2 1 1 3 1 1 3 3 2 . . Tool/Special . | . . . . . . . . . . . . . . Unused Backups 18 | . . . 3 . 1 7 2 . 1 . 2 . 2 Power 1 | . . . . . . 1 . . . . . . . Propulsion 4 | . . . 2 . 1 . . . . . . . 1 Utility 4 | . . . . . . 3 1 . . . . . . Weapon 7 | . . . 1 . . 2 1 . 1 . 2 . . Tool/Special 2 | . . . . . . 1 . . . . . . 1 Average Slot Usage (%) 86 | . 92 100 100 100 78 90 80 99 98 88 93 36 36 Engine 4 | . 14 14 14 14 2 2 2 11 5 . . . . Core 4 | . . . . . 5 10 4 . 3 8 . 7 2 Leg 24 | . 28 28 28 28 26 27 18 29 24 25 31 3 1 Flight 2 | . . . . . . . 6 . 4 . . . 7 Device 8 | . 7 11 . . 7 8 7 6 10 10 19 3 4 Storage 5 | . 14 14 14 14 9 6 . 3 5 5 3 . . Processor 10 | . . 2 14 14 7 8 16 11 10 10 9 8 7 Hackware 4 | . . . . . . . 5 10 10 10 9 8 7 Protection 3 | . . . . . 2 9 2 10 8 . . . . Energy Gun 4 | . 14 14 14 14 7 3 . 5 5 . . 3 2 Energy Cannon 2 | . . . . . 2 9 3 . . . . . 2 Ballistic Gun 3 | . 14 14 13 6 6 . 3 . . . . . . Ballistic Cannon 3 | . . . . 7 . . 4 5 5 9 8 . . Peak Build Rating 125 | 6 8 8 26 21 32 52 73 75 87 88 114 60 125 Average Rating 50 | 4 6 8 14 14 18 40 55 72 81 80 105 46 70 On Entrance 34 | . 6 8 8 9 21 24 36 57 71 86 88 24 50 Avg Prop Armor Cover (%) 5 | . . . . . 17 . 5 . 1 8 . 12 7 Naked Turns . | . . . . . . . . . . . . . . Heaviest Build 84 | 13 20 20 20 21 28 45 66 73 84 72 74 25 39 Greatest Support 136 | 20 20 20 60 40 70 90 110 91 91 116 136 25 63 Greatest Overweight (x) 9 | . . . . 1 4 . 6 . . 3 1 . 9 Average Overweight (x) . | . . . . . . . . . . . . . . Largest Inventory Capacity 25 | 8 10 10 10 10 10 10 5 8 8 8 25 5 5 Average Capacity 7 | 7 9 10 10 10 10 9 5 7 8 8 7 5 5 Most Carried 10 | 4 10 10 10 10 10 10 5 5 8 8 8 5 5 Average Carried 6 | 3 6 10 9 8 8 8 3 4 5 6 7 2 3 Final Capacity 10 | 8 10 10 10 10 10 5 5 8 8 8 5 5 5 Final Carried 10 | 4 10 10 8 10 10 4 5 5 7 8 5 3 3 Class Distribution -------------------- 58% | Scavenger-Mutant 38% | Mutant 3% | Hacker-Mutant Dominant Class ---------------- Mutant | -10/Materials Mutant | -10/Mines Mutant | -10/Exiles Mutant | -9/Mines Scavenger-Mutant | -8/Materials Scavenger-Mutant | -7/Factory Scavenger-Mutant | -6/Factory Scavenger-Mutant | -5/Factory Scavenger-Mutant | -4/Factory Scavenger-Mutant | -4/Extension Scavenger-Mutant | -3/Research Hacker-Mutant | -2/Research Hacker-Mutant | -1/Access Resources | -11 -10 -10 -10 -9 -8 -7 -6 -5 -4 -4 -3 -2 -1 ----------- Run | Yrd Mat Min Exi Min Mat Fac Fac Fac Fac Ext Res Res Acc Matter Collected 3288 | 232 59 36 . 70 524 168 919 132 208 723 217 . . Remotely 187 | . . . . . 187 . . . . . . . . Salvage Created 4364 | . 86 . . . 1130 457 1022 . 532 813 324 . . Parts 201 | . 5 . . . 53 21 65 . 21 20 16 . . Haulers Intercepted 1 | . . . . . . . 1 . . . . . . Recyclers Shooed 11 | . 1 . . . 4 . 1 . 2 3 . . . Parts Field Recycled 41 | . . . . . . . 9 7 11 14 . . . Retrieved Matter 600 | . . . . . . . 95 49 373 83 . . . Parts Self-Destructed . | . . . . . . . . . . . . . . Prevented . | . . . . . . . . . . . . . . Parts Restored . | . . . . . . . . . . . . . . Kills | -11 -10 -10 -10 -9 -8 -7 -6 -5 -4 -4 -3 -2 -1 ------- Run | Yrd Mat Min Exi Min Mat Fac Fac Fac Fac Ext Res Res Acc Combat Hostiles Destroyed 108 | . 2 . . . 25 19 35 . 9 11 7 . . Melee 2 | . . . . . . 2 . . . . . . . Guns 44 | . 2 . . . 22 1 13 . 4 2 . . . Cannons 46 | . . . . . . 6 19 . 5 9 7 . . AOE 16 | . . . . . 3 10 3 . . . . . . Classes Destroyed 16 | . 1 . . . 6 5 3 . . 1 . . . Worker 3 | . . . . . . 1 2 . . . . . . Builder 7 | . . . . . 1 . 5 . . 1 . . . Hauler 1 | . . . . . . . 1 . . . . . . Recycler 7 | . . . . . 3 . . . 2 2 . . . Watcher 2 | . . . . . . 1 1 . . . . . . Swarmer 24 | . . . . . 6 . 12 . 6 . . . . Grunt 34 | . 2 . . . 15 2 5 . . 8 2 . . Brawler 1 | . . . . . . . 1 . . . . . . Duelist 1 | . . . . . 1 . . . . . . . . Sentry 6 | . . . . . 2 . . . 1 2 1 . . Demolisher 2 | . . . . . . 2 . . . . . . . Hunter 2 | . . . . . . . 1 . . . 1 . . Programmer 9 | . . . . . . 2 2 . 2 . 3 . . Heavy 1 | . . . . . 1 . . . . . . . . Behemoth 1 | . . . . . . . . . . 1 . . . Assembled 27 | . . . . . . 13 14 . . . . . . Best Kill Streak 14 | . 1 . . . 11 13 14 . 5 5 4 . . Combat Bots Only 14 | . 1 . . . 8 10 14 . 4 3 4 . . Max Kills in Single Turn 6 | . 1 . . . 3 6 3 . 1 1 1 . . Gunslinging . | . . . . . . . . . . . . . . Exploded 6 | . . . . . 2 6 2 . . . . . . Melee 1 | . . . . . . 1 . . . . . . . Uniques/NPCs Destroyed . | . . . . . . . . . . . . . . Combat | -11 -10 -10 -10 -9 -8 -7 -6 -5 -4 -4 -3 -2 -1 -------- Run | Yrd Mat Min Exi Min Mat Fac Fac Fac Fac Ext Res Res Acc Hostile Shots Fired 1112 | . 11 . . . 190 134 182 11 71 90 222 3 198 Missed 355 | . 2 . . . 58 24 58 5 26 25 69 1 87 Hits 757 | . 9 . . . 132 110 124 6 45 65 153 2 111 Melee 17 | . . . . . 1 8 8 . . . . . . Projectile 740 | . 9 . . . 131 102 116 6 45 65 153 2 111 AOE 24 | . . . . . . 19 . 3 2 . . . . Critical Strikes 44 | . . . . . 4 3 7 . . 9 15 . 6 Part Disruptions 5 | . . . . . . 1 . 1 1 . 2 . . Damage Taken 14870 | . 100 . . . 2395 2429 2181 532 730 1413 2348 43 2699 Core 3412 | . 34 . . . 400 318 264 76 57 234 412 . 1617 Absorbed by Shields 483 | . . . . . . . . . . 151 285 . 47 Redirected to Shielding 112 | . . . . . . 112 . . . . . . . Ignored by Resistances 289 | . . . . . . . . 24 139 . 126 . . Core Remaining (%) 74 | 100 . . . 86 27 54 68 92 . 74 68 100 . Volleys Fired 398 | . 17 2 . . 92 35 113 26 34 59 19 . 1 Largest 2 | . 2 2 . . 2 2 2 2 2 2 2 . 1 Hottest 149 | . 70 70 . . 137 149 120 113 113 113 109 . 80 Shots Fired 715 | . 34 4 . . 173 56 179 47 68 117 36 . 1 Gun 356 | . 34 4 . . 160 12 71 23 34 17 . . 1 Cannon 346 | . . . . . 10 35 107 24 34 100 36 . . Launcher 13 | . . . . . 3 9 1 . . . . . . Special . | . . . . . . . . . . . . . . Kinetic 425 | . 17 2 . . 104 . 108 24 34 100 36 . . Thermal 254 | . 17 2 . . 66 24 70 23 34 17 . . 1 Explosive 13 | . . . . . 3 9 1 . . . . . . Electromagnetic 23 | . . . . . . 23 . . . . . . . Robot Hit Streak 16 | . 7 1 . . 16 3 8 3 10 12 14 . . Robot Miss Streak 7 | . 3 2 . . 4 3 4 2 7 4 1 . . Penetration Max . | . . . . . . . . . . . . . . Secondary Targets 3 | . . . . . 3 . . . . . . . . Max Gunslinging Chain 1 | . . . . . 1 . . . . . . . . Shots Hit Robots 377 | . 19 1 . . 120 36 80 3 28 66 24 . . Core Hits 232 | . 4 1 . . 62 48 55 . 16 33 13 . . Critical Kills 1 | . . . . . . . 1 . . . . . . Critical Parts Destroyed 1 | . . . . . . . 1 . . . . . . Critical Strikes 27 | . . . . . 4 1 3 . . 17 2 . . Burn 5 | . . . . . 4 . . . . 1 . . . Destroy 2 | . . . . . . . 2 . . . . . . Blast 19 | . . . . . . . 1 . . 16 2 . . Sever 1 | . . . . . . 1 . . . . . . . Melee Attacks 8 | . . . . . . 8 . . . . . . . Impact . | . . . . . . . . . . . . . . Slashing 8 | . . . . . . 8 . . . . . . . Piercing . | . . . . . . . . . . . . . . Sneak Attacks . | . . . . . . . . . . . . . . Combat Hostiles . | . . . . . . . . . . . . . . Follow-up Attacks . | . . . . . . . . . . . . . . Damage Inflicted 11523 | . 195 15 . . 2399 1953 2700 74 757 2321 1084 . 25 Guns 3320 | . 180 15 . . 1692 93 817 19 256 248 . . . Cannons 5804 | . . . . . 165 469 1478 55 501 2052 1084 . . Explosions 1940 | . . . . . 524 1048 368 . . . . . . Melee 307 | . . . . . . 307 . . . . . . . Ramming 152 | . 15 . . . 18 36 37 . . 21 . . 25 Kinetic 6361 | . 91 15 . . 1189 . 1374 55 501 2052 1084 . . Thermal 2672 | . 89 . . . 668 271 1121 19 256 248 . . . Explosive 1740 | . . . . . 524 1048 168 . . . . . . Electromagnetic 291 | . . . . . . 291 . . . . . . . Impact . | . . . . . . . . . . . . . . Slashing 307 | . . . . . . 307 . . . . . . . Piercing . | . . . . . . . . . . . . . . Highest Corruption 22 | . . . . . . 2 22 1 . . 4 . 11 Average Corruption 7 | . . . . . . 1 13 1 . . 3 . 3 Corruption Purged . | . . . . . . . . . . . . . . Corruption Blocked . | . . . . . . . . . . . . . . Effects 66 | . . . . . . 11 52 . . . 2 . 1 Message Errors 21 | . . . . . . 4 17 . . . . . . Matter Fused 13 | . . . . . . 2 11 . . . . . . Heat Flow Errors 3 | . . . . . . 2 1 . . . . . . Energy Discharges 5 | . . . . . . . 4 . . . . . 1 Parts Rejected 4 | . . . . . . . 4 . . . . . . Parts Fused 1 | . . . . . . 1 . . . . . . . Data Loss (minor) 8 | . . . . . . 1 7 . . . . . . Data Loss (major) 2 | . . . . . . . 2 . . . . . . Misfires 1 | . . . . . . . . . . . 1 . . Alerts 1 | . . . . . . 1 . . . . . . . Weapon Failures 7 | . . . . . . . 6 . . . 1 . . Overload Shots . | . . . . . . . . . . . . . . Overflow Damage 335 | . . . . . . 83 122 5 18 47 60 . . Projectiles 190 | . . . . . . 38 22 5 18 47 60 . . Explosions 141 | . . . . . . 44 97 . . . . . . Melee 4 | . . . . . . 1 3 . . . . . . Knockbacks 26 | . . . . . 1 . 5 1 2 11 6 . . Impact . | . . . . . . . . . . . . . . Kinetic 25 | . . . . . 1 . 5 1 2 10 6 . . Secondary 1 | . . . . . . . . . . 1 . . . Self-Inflicted Damage 234 | . . . . . . 25 198 . . . . . 11 Shots 4 | . . . . . . 2 2 . . . . . . Rammed 3 | . . . . . . . . . . . . . 3 Targets Rammed 28 | . 2 . . . 7 8 6 . . 2 . . 3 Kicked 25 | . 2 . . . 7 8 6 . . 2 . . . Crushed . | . . . . . . . . . . . . . . Highest Temperature 507 | . 120 . . . 215 507 189 342 12 335 48 . . Average Temperature 78 | . 30 . . . 56 142 55 154 7 126 35 . . Received Heat Transfer 2409 | . 54 . . . 972 324 197 27 51 697 6 . 81 Effects 7 | . . . . . . 7 . . . . . . . Shutdowns 3 | . . . . . . 3 . . . . . . . Interference 1 | . . . . . . 1 . . . . . . . Matter Decay 1 | . . . . . . 1 . . . . . . . Damage (major) 2 | . . . . . . 2 . . . . . . . Siege Activations . | . . . . . . . . . . . . . . Martial Activations . | . . . . . . . . . . . . . . Shielding Activations . | . . . . . . . . . . . . . . Robots Disrupted . | . . . . . . . . . . . . . . Combat Hostiles . | . . . . . . . . . . . . . . Robots Corrupted . | . . . . . . . . . . . . . . Combat Hostiles . | . . . . . . . . . . . . . . Parts Fried 2 | . . . . . . 2 . . . . . . . Impact Corruptions 1 | . . . . . . . 1 . . . . . . Robots Melted . | . . . . . . . . . . . . . . Combat Hostiles . | . . . . . . . . . . . . . . Parts Melted 11 | . . . . . 6 1 4 . . . . . . Heat Transferred 5164 | . 259 . . . 2035 498 1299 37 481 555 . . . Parts Sabotaged . | . . . . . . . . . . . . . . Parts Stolen . | . . . . . . . . . . . . . . Parts Stripped . | . . . . . . . . . . . . . . Power Chain Reactions . | . . . . . . . . . . . . . . Alert | -11 -10 -10 -10 -9 -8 -7 -6 -5 -4 -4 -3 -2 -1 ------- Run | Yrd Mat Min Exi Min Mat Fac Fac Fac Fac Ext Res Res Acc Maximum Alert Level 1 | . . . . . 1 . 1 . . 1 . . . Low Security (%) 88 | 100 100 100 . 100 62 100 76 100 100 89 100 100 100 Level 1 11 | . . . . . 37 . 23 . . 10 . . . Level 2 . | . . . . . . . . . . . . . . Level 3 . | . . . . . . . . . . . . . . Level 4 . | . . . . . . . . . . . . . . Level 5 . | . . . . . . . . . . . . . . High Security . | . . . . . . . . . . . . . . Max Security . | . . . . . . . . . . . . . . Peak Influence 302 | . 20 . . . 296 90 301 79 118 302 145 . 35 Initial 145 | . . . . . . 90 25 79 . 37 145 . . Average 67 | . 3 . . . 149 17 104 21 42 113 52 . 4 Influence Increases 3312 | . 57 . . . 765 250 725 27 252 844 260 . 132 Destroy 0b10 Robot/C 1860 | . 40 . . . 540 120 420 . 180 400 160 . . Destroy 0b10 Robot/NC 145 | . . . . . 25 35 45 . 10 25 5 . . Destroy Leader 352 | . 10 . . . 122 32 74 . 40 44 30 . . Allied During Kill 227 | . . . . . 8 . . . . 183 36 . . Successful Hack 97 | . 7 . . . . 14 29 . . 8 . . 39 Disable Machine 105 | . . . . . 15 15 45 15 . . 15 . . Destroy Structure 241 | . . . . . 25 34 67 12 22 64 14 . 3 Lose Combat Pursuer 285 | . . . . . 30 . 45 . . 120 . . 90 Influence Decreases 3287 | . 57 . . . 566 397 613 189 176 644 538 . 107 Entered New Map 397 | . . . . . . 109 27 85 2 41 133 . . Time Decay 1903 | . 57 . . . 356 227 365 102 144 383 227 . 42 Lost Part 767 | . . . . . 190 61 221 2 30 100 98 . 65 Lost Ally 220 | . . . . . 20 . . . . 120 80 . . Squads Dispatched 37 | . 2 . . 1 7 4 11 2 2 2 2 . 4 Investigation 5 | . 1 . . 1 . . . . 1 . . . 2 Extermination 10 | . . . . . . 2 4 1 1 . 1 . 1 Reinforcement 15 | . 1 . . . 3 2 4 1 . 2 1 . 1 Assault . | . . . . . . . . . . . . . . Garrison 7 | . . . . . 4 . 3 . . . . . . Intercept . | . . . . . . . . . . . . . . Searches Triggered . | . . . . . . . . . . . . . . Construction Impeded 6 | . . . . . 1 . 3 . . 2 . . . Haulers Reinforced . | . . . . . . . . . . . . . . Active Scanning Responses . | . . . . . . . . . . . . . . Cargo Convoy Interrupts . | . . . . . . . . . . . . . . Stealth | -11 -10 -10 -10 -9 -8 -7 -6 -5 -4 -4 -3 -2 -1 --------- Run | Yrd Mat Min Exi Min Mat Fac Fac Fac Fac Ext Res Res Acc Distress Signals 14 | . 1 . . . 6 . 2 . 1 3 . . 1 Communications Jammed . | . . . . . . . . . . . . . . Distress Signals . | . . . . . . . . . . . . . . Times Spotted 204 | . 8 2 . 2 40 29 42 2 11 31 12 1 24 Peak Tracking Total 14 | . 2 1 . 1 9 8 6 2 4 7 7 2 14 Tactical Retreats 13 | . . . . . 2 . 2 . . 5 . . 4 Traps | -11 -10 -10 -10 -9 -8 -7 -6 -5 -4 -4 -3 -2 -1 ------- Run | Yrd Mat Min Exi Min Mat Fac Fac Fac Fac Ext Res Res Acc Traps Triggered 8 | . . . . . . 1 4 . . 1 . . 2 Indirectly . | . . . . . . . . . . . . . . Trap Hack Attempts . | . . . . . . . . . . . . . . Triggered . | . . . . . . . . . . . . . . Disarmed . | . . . . . . . . . . . . . . Reprogrammed . | . . . . . . . . . . . . . . Reused . | . . . . . . . . . . . . . . Traps Extracted . | . . . . . . . . . . . . . . Installed . | . . . . . . . . . . . . . . Triggered . | . . . . . . . . . . . . . . Machines | -11 -10 -10 -10 -9 -8 -7 -6 -5 -4 -4 -3 -2 -1 ---------- Run | Yrd Mat Min Exi Min Mat Fac Fac Fac Fac Ext Res Res Acc Machines Disabled 7 | . . . . . 1 1 3 1 . . 1 . . Max in Single Turn 2 | . . . . . 1 1 2 1 . . 1 . . Machines Repaired . | . . . . . . . . . . . . . . Machines Dismantled . | . . . . . . . . . . . . . . Machines Sabotaged . | . . . . . . . . . . . . . . Overloaded Fab Kills . | . . . . . . . . . . . . . . Hacking | -11 -10 -10 -10 -9 -8 -7 -6 -5 -4 -4 -3 -2 -1 --------- Run | Yrd Mat Min Exi Min Mat Fac Fac Fac Fac Ext Res Res Acc Machines Accessed 24 | . 3 . 2 1 . 2 4 1 2 6 . . 3 Terminals 15 | . 2 . . . . 1 1 1 2 6 . . 2 Fabricators 2 | . . . . . . . 1 . . . . . 1 Repair Stations 1 | . . . . . . . 1 . . . . . . Recycling Units 1 | . 1 . . . . . . . . . . . . Scanalyzers 2 | . . . . . . 1 1 . . . . . . Garrison Access . | . . . . . . . . . . . . . . Total Hacks 45 | . 8 . 2 1 . 2 9 2 7 8 . . 6 Successful 25 | . 3 . 2 1 . 1 5 2 3 6 . . 2 Failed 20 | . 5 . . . . 1 4 . 4 2 . . 4 Catastrophic 5 | . 1 . . . . 1 . . 2 . . . 1 Database Lockouts . | . . . . . . . . . . . . . . Manual 8 | . . . 1 . . . 2 . 5 . . . . Terminals 29 | . 4 . . . . 1 2 2 7 8 . . 5 Fabricators 2 | . . . . . . . 1 . . . . . 1 Repair Stations 4 | . . . . . . . 4 . . . . . . Recycling Units 4 | . 4 . . . . . . . . . . . . Scanalyzers 3 | . . . . . . 1 2 . . . . . . Garrison Access . | . . . . . . . . . . . . . . Terminal Hacks 19 | . 1 . 2 1 . 1 2 2 3 6 . . 1 Record 3 | . . . 1 . . . . 1 1 . . . . Open Door 8 | . . . . 1 . . . . 1 6 . . . Level Access Points 3 | . . . . . . . 1 1 . . . . 1 Branch Access Points 1 | . 1 . . . . . . . . . . . . Alert Level 1 | . . . . . . . 1 . . . . . . Zone Layout 2 | . . . . . . 1 . . 1 . . . . Proto ID Catalog 1 | . . . 1 . . . . . . . . . . Fabricator Hacks 1 | . . . . . . . . . . . . . 1 Build 1 | . . . . . . . . . . . . . 1 Repair Station Hacks 1 | . . . . . . . 1 . . . . . . Scan Component 1 | . . . . . . . 1 . . . . . . Recycling Unit Hacks 2 | . 2 . . . . . . . . . . . . Report Inventory 1 | . 1 . . . . . . . . . . . . Retrieve Components 1 | . 1 . . . . . . . . . . . . Scanalyzer 2 | . . . . . . . 2 . . . . . . Retrieve Study 2 | . . . . . . . 2 . . . . . . Garrison Access Hacks . | . . . . . . . . . . . . . . Unauthorized Hacks . | . . . . . . . . . . . . . . Terminals . | . . . . . . . . . . . . . . Fabricators . | . . . . . . . . . . . . . . Repair Stations . | . . . . . . . . . . . . . . Recycling Units . | . . . . . . . . . . . . . . Scanalyzers . | . . . . . . . . . . . . . . Garrison Access . | . . . . . . . . . . . . . . Data Cores Recovered . | . . . . . . . . . . . . . . Used . | . . . . . . . . . . . . . . Hacking Detections 16 | . 3 . . . . 2 4 . 1 4 . . 2 Full Trace Events 3 | . 1 . . . . . . . 1 . . . 1 Feedback Events . | . . . . . . . . . . . . . . Feedback Blocked . | . . . . . . . . . . . . . . Robot Schematics Acquired . | . . . . . . . . . . . . . . Robots Built . | . . . . . . . . . . . . . . Authchips . | . . . . . . . . . . . . . . Time . | . . . . . . . . . . . . . . Total Robot Build Rating . | . . . . . . . . . . . . . . Part Schematics Acquired . | . . . . . . . . . . . . . . Parts Built 1 | . . . . . . . . . . . . . 1 Authchips . | . . . . . . . . . . . . . . Time 46 | . . . . . . . . . . . . . 46 Total Part Build Rating 9 | . . . . . . . . . . . . . 9 Part Studies Acquired 2 | . . . . . . . 2 . . . . . . Parts Repaired . | . . . . . . . . . . . . . . Time . | . . . . . . . . . . . . . . Parts Recycled . | . . . . . . . . . . . . . . Recycled Matter . | . . . . . . . . . . . . . . Retrieved Matter . | . . . . . . . . . . . . . . Retrieved Components 3 | . 3 . . . . . . . . . . . . Parts Scanalyzed . | . . . . . . . . . . . . . . Part Schematics Acquired . | . . . . . . . . . . . . . . Parts Damaged . | . . . . . . . . . . . . . . Bothacking | -11 -10 -10 -10 -9 -8 -7 -6 -5 -4 -4 -3 -2 -1 ------------ Run | Yrd Mat Min Exi Min Mat Fac Fac Fac Fac Ext Res Res Acc Used RIF Installer . | . . . . . . . . . . . . . . Robots Hacked . | . . . . . . . . . . . . . . Non-combat . | . . . . . . . . . . . . . . Combat . | . . . . . . . . . . . . . . Robot Hacks Applied . | . . . . . . . . . . . . . . Relay Couplers Released . | . . . . . . . . . . . . . . Fabnet Peak Effective % . | . . . . . . . . . . . . . . Robots Rewired 4 | . . . . . . . . . . 4 . . . Allies Hacked 1 | . . . . . . . . . . 1 . . . Hacks Repelled . | . . . . . . . . . . . . . . Allies | -11 -10 -10 -10 -9 -8 -7 -6 -5 -4 -4 -3 -2 -1 -------- Run | Yrd Mat Min Exi Min Mat Fac Fac Fac Fac Ext Res Res Acc Total Allies 14 | . . . . 3 . . . . . 11 . . . Largest Group 9 | . . . . 3 3 . . . . 9 4 . . Highest-Rated Group 383 | . . . . 40 40 . . . . 383 171 . . Highest-Rated Ally 51 | . . . . 16 16 . . . . 51 46 . . Total Orders . | . . . . . . . . . . . . . . Ally Attacks 122 | . . . . 5 19 . . . . 80 18 . . Total Damage 2797 | . . . . 54 221 . . . . 2120 402 . . Kills 18 | . . . . . 4 . . . . 12 2 . . Allies Corrupted . | . . . . . . . . . . . . . . Allies Melted . | . . . . . . . . . . . . . . Intel | -11 -10 -10 -10 -9 -8 -7 -6 -5 -4 -4 -3 -2 -1 ------- Run | Yrd Mat Min Exi Min Mat Fac Fac Fac Fac Ext Res Res Acc Active Infowar (turns) . | . . . . . . . . . . . . . . Robot Analysis Total . | . . . . . . . . . . . . . . Derelict Logs Recovered 2 | . . 1 . 1 . . . . . . . . . Drone Launches . | . . . . . . . . . . . . . . Drone Recoveries . | . . . . . . . . . . . . . . Exploration | -11 -10 -10 -10 -9 -8 -7 -6 -5 -4 -4 -3 -2 -1 ------------- Run | Yrd Mat Min Exi Min Mat Fac Fac Fac Fac Ext Res Res Acc Turns Passed 8546 | 76 332 434 327 264 986 1377 2053 332 514 902 643 70 236 Spaces Moved 5979 | 61 227 353 296 225 542 966 1302 231 289 539 464 53 431 Core 159 | 14 . . . . 2 . . . . . 28 . 115 Treads . | . . . . . . . . . . . . . . Legs 5434 | 47 227 353 296 225 540 966 1298 231 289 482 435 45 . Wheels 58 | . . . . . . . . . . 57 1 . . Hover . | . . . . . . . . . . . . . . Flight 328 | . . . . . . . 4 . . . . 8 316 Fastest Speed 34 | 50 120 120 90 105 60 64 90 90 105 105 50 50 34 Average Speed 107 | 103 120 120 106 114 122 114 102 106 107 120 115 109 47 Slowest Speed 545 | 120 120 120 120 190 250 120 545 108 108 180 120 120 500 Overloaded Moves 59 | . . . . . 5 6 28 20 . . . . . Propulsion Burnouts . | . . . . . . . . . . . . . . Robots Hopped 3 | . . . . . . . . . . . . . 3 Potential Cave-ins 14 | . . . . . . . 2 10 2 . . . . Cave-ins Triggered 1 | . . . . . . . . 1 . . . . . Exploration Rate (%) 26 | 3 25 63 62 61 37 25 21 4 5 43 8 1 14 Regions Visited 13 Branch Regions 4 Pre-discovered Areas 2 | . . 1 1 . . . . . . . . . . Known Exits Taken 8 | . 1 1 1 1 1 1 1 1 . . . . . Unknown Exits Taken 5 | 1 . . . . . . . . 1 1 1 1 . Scrap Searched 2 | . . 2 . . . . . . . . . . . Spaces Dug 51 | . . . . . . . 21 19 5 3 2 . 1 Terrain Destroyed 207 | . . . . . 23 33 76 20 14 32 8 . 1 Melee . | . . . . . . . . . . . . . . Projectile 120 | . . . . . 2 . 43 20 14 32 8 . 1 AOE 87 | . . . . . 21 33 33 . . . . . . Terrain Rammed . | . . . . . . . . . . . . . . Walls Destroyed . | . . . . . . . . . . . . . . Machines Disabled . | . . . . . . . . . . . . . . Actions | -11 -10 -10 -10 -9 -8 -7 -6 -5 -4 -4 -3 -2 -1 --------- Run | Yrd Mat Min Exi Min Mat Fac Fac Fac Fac Ext Res Res Acc Total 7326 | 70 254 360 306 230 689 1166 1833 268 425 670 531 65 459 Wait 591 | . . 1 . . 2 94 341 1 79 36 29 . 8 Move 5959 | 60 226 352 295 224 541 965 1301 229 288 538 463 52 425 Hop 3 | . . . . . . . . . . . . . 3 Pick Up 83 | 4 5 1 2 3 11 15 14 3 10 5 2 3 5 Fast Attach 68 | 6 2 . . . 12 4 29 1 2 4 5 . 3 Attach 69 | . . . . . 13 14 12 3 5 4 4 7 7 Detach 10 | . 1 . . . 2 3 1 . . . . 2 1 Swap 40 | . 1 2 5 2 5 3 7 3 2 6 4 . . Drop 55 | . . 2 4 1 4 17 8 1 5 4 5 1 3 Fire 398 | . 17 2 . . 92 35 113 26 34 59 19 . 1 Melee 8 | . . . . . . 8 . . . . . . . Ram 3 | . . . . . . . . . . . . . 3 Kick 25 | . 2 . . . 7 8 6 . . 2 . . . Crush . | . . . . . . . . . . . . . . Escape Stasis 2 | . . . . . . . 1 1 . . . . . Rewire 12 | . . . . . . . . . . 12 . . . Trap . | . . . . . . . . . . . . . . Miscellaneous . | . . . . . . . . . . . . . . Route ------- -11/Scrapyard -10/Materials (discovered 2 exits: *Min x2) -10/Mines (discovered 2 exits: *Mat / *Exi) -10/Exiles (discovered 2 exits: *Min x2) -9/Mines -8/Materials (discovered 2 exits: *Fac x2) -7/Factory (discovered 2 exits: *Fac / *Low) -6/Factory (discovered 4 exits: *Fac x4) -5/Factory (discovered 4 exits: *Fac x4) -4/Factory (discovered 2 exits: *Res / *Ext) -4/Extension -3/Research -2/Research -1/Access (discovered 1 exit: Sur) History --------- Turn | Location | Event 11 | -11/Scrapyard | Discovered new exit (range 16) 77 | -11/Scrapyard | Entered Materials 184 | -10/Materials | Identified exit to Mines 313 | -10/Materials | Build established: Mutant 409 | -10/Materials | Entered Mines 422 | -10/Mines | Learned location of Zion (-6) 550 | -10/Mines | Assembled infested the area 555 | -10/Mines | Assisted by a Guerilla fighting off Assembled 757 | -10/Mines | Discovered new exit (range 3) 768 | -10/Mines | Identified exit to Materials 837 | -10/Mines | Deemed a non-threat by the Exiles lab entrance 838 | -10/Mines | Discovered new exit (range 5) 842 | -10/Mines | Identified exit to Exiles 843 | -10/Mines | Entered Exiles 864 | -10/Exiles | Discovered new exit (range 15) 889 | -10/Exiles | Identified exit to Mines 915 | -10/Exiles | Met 8R-AWN 938 | -10/Exiles | Met EX-HEX 974 | -10/Exiles | Met EX-BIN 989 | -10/Exiles | Aligned with FarCom system 990 | -10/Exiles | Given EX-Vault access code 1031 | -10/Exiles | Opened EX-Vault 1040 | -10/Exiles | Found Potential Leg 1042 | -10/Exiles | Found Potential Leg 1064 | -10/Exiles | Warned to stay clear of 0b10 Research branches 1092 | -10/Exiles | Met EX-DEC 1153 | -10/Exiles | Discovered exit to Mines (range 10) 1170 | -10/Exiles | Left Exiles lab with Potential Leg 1170 | -10/Exiles | Entered Mines 1196 | -9/Mines | Assisted by bots powering up and referring to "LRC-V3" 1299 | -9/Mines | A weapon hastily lodged in a ceiling crevice suddenly fell to the ground 1364 | -9/Mines | Found a hidden stash of uninstalled traps 1394 | -9/Mines | Met a Derelict shopkeep closing up shop 1427 | -9/Mines | Discovered new exit (range 5) 1433 | -9/Mines | Identified exit to Materials 1434 | -9/Mines | Entered Materials 1434 | -8/Materials | Accompanied by 3 allies 1434 | -8/Materials | Evolved 4 slots: Propulsion x2, Utility x2 1435 | -8/Materials | Identified exit to Factory 1689 | -8/Materials | Lost 3 allies 1723 | -8/Materials | Garrison activated, responded to threat 1833 | -8/Materials | Destroyed 8 combat bots 1844 | -8/Materials | Core integrity fell below 50% 1900 | -8/Materials | Lost 16 parts (3p6n3u4w) 2070 | -8/Materials | Garrison activated, responded to threat 2241 | -8/Materials | Build established: Scavenger-Mutant 2390 | -8/Materials | Discovered exit to Factory (range 16) 2420 | -8/Materials | Entered Factory 2420 | -7/Factory | Evolved 2 slots: Power x1, Utility x1 3096 | -7/Factory | Discovered new exit (range 6) 3105 | -7/Factory | Identified exit to Lower Caves 3579 | -7/Factory | Assembled infested ambush trap array 3644 | -7/Factory | Destroyed 10 combat bots 3677 | -7/Factory | Lost 8 parts (2p1n4u1w) 3762 | -7/Factory | Discovered new exit (range 8) 3790 | -7/Factory | Build established: Mutant 3796 | -7/Factory | Identified exit to Factory 3797 | -7/Factory | Entered another Factory area 3797 | -6/Factory | Evolved 2 slots: Propulsion x1, Utility x1 4134 | -6/Factory | Lost 3 parts (1p1n1w) 4604 | -6/Factory | Identified exit to Factory 4729 | -6/Factory | System corruption reached 10% 4759 | -6/Factory | Lost 3 parts (2n1u) 5096 | -6/Factory | Build established: Scavenger-Mutant 5156 | -6/Factory | Garrison activated, responded to threat 5277 | -6/Factory | Lost 3 parts (1n1u1w) 5527 | -6/Factory | Assembled infested ambush trap array 5597 | -6/Factory | Destroyed 14 combat bots 5605 | -6/Factory | Lost 7 parts (1p1n4u1w) 5625 | -6/Factory | Found Powered Armor 5850 | -6/Factory | Entered another Factory area 5850 | -5/Factory | Evolved 2 slots: Utility x2 6040 | -5/Factory | Identified exit to Factory 6145 | -5/Factory | Crushed by falling debris 6182 | -5/Factory | Entered another Factory area 6182 | -4/Factory | Evolved 2 slots: Propulsion x1, Utility x1 6602 | -4/Factory | Lost 3 parts (1p1n1u) 6643 | -4/Factory | Discovered new exit (range 7) 6692 | -4/Factory | Discovered new exit (range 6) 6696 | -4/Factory | Entered Extension 6869 | -4/Extension | Lost 8 parts (4n2u2w) 7009 | -4/Extension | Rescued a captive Derelict 7083 | -4/Extension | Rescued a captive Derelict 7096 | -4/Extension | Rescued a captive Derelict 7099 | -4/Extension | Rescued a captive Derelict 7150 | -4/Extension | Rescued a captive Derelict 7151 | -4/Extension | Rescued a captive Derelict 7358 | -4/Extension | Spotted B-86 Titan 7396 | -4/Extension | Destroyed B-86 Titan 7404 | -4/Extension | Spotted B-86 Titan 7406 | -4/Extension | Lost 6 allies 7417 | -4/Extension | Allies destroyed B-86 Titan 7555 | -4/Extension | Rescued a captive Derelict 7595 | -4/Extension | Discovered new exit (range 3) 7598 | -4/Extension | Entered Research 7598 | -3/Research | Accompanied by 4 allies 7598 | -3/Research | Evolved 2 slots: Propulsion x1, Utility x1 8235 | -3/Research | Discovered new exit (range 11) 8241 | -3/Research | Entered another Research area 8241 | -2/Research | Evolved 2 slots: Utility x1, Weapon x1 8258 | -2/Research | Lost 19 parts (2p8n5u4w) 8286 | -2/Research | Discovered new exit (range 7) 8311 | -2/Research | Entered Access 8311 | -1/Access | Evolved 2 slots: Propulsion x1, Utility x1 8389 | -1/Access | Found Quantum Capacitor 8410 | -1/Access | Fabricated Hvy. Shield Leg? 8467 | -1/Access | Identified exit to Surface 8505 | -1/Access | Core integrity fell below 50% 8520 | -1/Access | Lost 9 parts (1p4n3u1w) 8526 | -1/Access | Core integrity fell below 20% 8545 | -1/Access | System corruption reached 10% 8547 | -1/Access | Destroyed by P-80 Master with Gamma Rifle Last Messages --------------- 08492_ P-80 Master resets S-43 Plague, system corruption cleaned. 08498_ S-43 Plague destroyed. 08505_ ALERT: Potential suspicious activity detected, Programmers report to Access Zone 9W. 08509_ Connecting with Terminal... 08509_ ALERT: Suspicious activity at Terminal A001. Dispatching Investigation squad. 08517_ K-01 Serf cleans the TF Node. 08517_ P-80 Master resets P-80 Master, system corruption cleaned. 08523_ Critical hit (Burn: +37). 08523_ Slammed into G-73 Enforcer. 08523_ Armor Integrity Analyzer destroyed. 08533_ System corrupted: Energy discharge (-22). 08544_ Slammed into S-43 Plague. 08544_ Hacking Suite destroyed. 08544_ System corrupted by crushing effect (+3). 08545_ Slammed into S-43 Plague. Map ----- +----------------------------------------------------+ | ??????????????????????????????????????????????? | | ??????????????????????????????????????????????? | | ??????????????????????????????????????????????? | | ??????????????????????????????????????????????? | | ??????????????????????????????????????????????? | | ??????????????????????????????????????????????? | | ??????????????????????????????????????????????? | | ??????????????????????????????????????????????? | | ??????????????????????????????????????????????? | | ????????????????????##############????????????? | | ???????????########## #????????????? | | ???????????? # #????????????? | | ??????????? # #????????????? | | ???????????"" # #????????????? | | ?????????"""" # "" #????????????? | | ????????""""" # "" #????????????? | | ???????#""""" # """"""#????????????? | | ???????#""""" # """"""#????????????? | | ???????#""""" # "" #????????????? | | ???????# # "" #????????????? | | ???????# # #????????????? | | ???????# * # #????????????? | | #####??# #######s######????????????? | | ##########+########## #######??????????? | | " gg p ps"" #?????????? | | g gp Yp p@"T #?????????? | | ############ ####### ##### #?????????? | | #+###??????????# #?????##+###??????#?????????? | | ????????????# #???????????????????????????? | | ????????????# #???????????????????????????? | | "???????????# #???????????????????????????? | | ""???????????# #???????????????????????????? | | ""??????????# #???????????????????????????? | | "?????????? = ???????????????????????????? | | ?????????? ???????????????????????????? | | ?????????? ???????????????????????????? | | ?????????# #??????????????????????????? | | #####?????????##+###??????????????????????????? | | ??????????????????????????????????????????????? | | ??????????????????????????????????????????????? | | ??????????????????????????????????????????????? | | ??????????????????????????????????????????????? | | ??????????????????????????????????????????????? | | ??????????????????????????????????????????????? | | ??????????????????????????????????????????????? | | ??????????????????????????????????????????????? | | ??????????????????????????????????????????????? | | ??????????????????????????????????????????????? | | ??????????????????????????????????????????????? | | ??????????????????????????????????????????????? | +----------------------------------------------------+ Best States ------------- Heat Dissipation 77 Energy Generation 35 Energy Capacity 385 Matter Stores 300 Matter Capacity 300 Sight Range 16 Terrain Scan Density 210 Power Amplification 20 Armor Coverage 625 Resistance: KI 30 Resistance: EM 25 Propulsion Shielding 66 Phase Shifting 5 Evasion (%) 63 Melee Accuracy 12 Target Analysis 8 Core Analysis 6 Armor Integrity Analysis 30 Offensive Hacking 22 Item Schematics ----------------- None Robot Schematics ------------------ None Fabricated ------------ Hvy. Shield Leg | x1 | -1/Access | Preloaded Repaired ---------- Nothing Studied --------- Lgt. Armored Exoskeleton | -6/Factory | Hacked Gauss Cannon | -6/Factory | Hacked Alien Tech Used ----------------- None Achievements -------------- Denied? Respectable Loadout Challenges ------------ None Game ------ Seed ChaosWarpBlasthammer Manual? 0 Play Time 01:51:37 Cumulative 29.5 hours Start 2026.07.11 @ 22:30:14 End 2026.07.12 @ 01:31:08 Sessions 7 Manual Loads 0 Difficulty Rogue Special Mode None Game No. 41 Rogue 41 Adventurer 0 Explorer 0 Win Type - Total 0 Types 0/0/0/0/0/0/0/0/0/0 Lore% 28 Gallery% 28 Achievement% 21 Wizard Run 0 Options --------- Layout 1 ASCII 0 Keyboard 0 Movement Mouse Keybinds 0 Fullscreen 1 Font 20/SmallcapsGlow Map View 50x35 Zoom Use 0% Tactical HUD 1 Map Filters NONE Filters NONE Steam 1 RUN: 56094efd-dae0-4f65-bee2-65cf9e10886f